Cogmind - Beta 16 @@@ ROGUE MODE // 2025.11.23 @ 10:06:18 Player: Mozco Result: Destroyed by 48-AC0(R) with Subdweller Machine Gun Performance ------------- Evolutions (0) 0 Regions Visited (2) 400 Robots Destroyed (30) 150 Value Destroyed (876) 876 Prototype IDs (1) 20 Alien Tech Used (0) 0 Bonus (0) 0 TOTAL SCORE: 1446 Bonus ------- None Cogmind --------- Core Integrity 0/250 Matter 290/300 Energy 95/100 System Corruption 0% Temperature Cool (0) Movement Treading (160) Location -10/Subcaves Parts ------- > --- POWER (1) -------- Subdweller Power Source > --- PROPULSION (2) --- Light Treads Spiked Treads > --- UTILITY (2) ------ Large Storage Unit Hardened Light Armor Plating > --- WEAPON (2) ------- Subdweller Machine Gun Makeshift Sword > --- INVENTORY (15) --- Subdweller Monowheel Flightbrick Subdweller Optics Subdweller Laser Light EM Pulse Cannon Subdweller Beam Cannon Assault Rifle Battle Rifle Improved Assault Rifle Heavy Battle Rifle Peak State ------------ > --- POWER ------------ Subdweller Power Source > --- PROPULSION ------- Light Treads Spiked Treads > --- UTILITY ---------- Large Storage Unit Hardened Light Armor Plating > --- WEAPON ----------- Subdweller Machine Gun Makeshift Sword > --- INVENTORY -------- Subdweller Monowheel Flightbrick Subdweller Optics Subdweller Laser Light EM Pulse Cannon Subdweller Beam Cannon Assault Rifle Battle Rifle Improved Assault Rifle Heavy Battle Rifle [Rating: 19] Favorites ----------- Power Light Ion Engine Engine Light Ion Engine Propulsion Light Treads Treads Light Treads Utility Large Storage Unit Storage Large Storage Unit Protection Hardened Light Armor Plating Weapon Improved Assault Rifle Energy Gun EM Pulse Gun Ballistic Gun Improved Assault Rifle Slashing Weapon Makeshift Sword Build | -11 -10 -10 ------- Run | Yrd Mat Sub Slots Evolved . | . . . Power . | . . . Propulsion . | . . . Utility . | . . . Weapon . | . . . Parts Attached 29 | 6 5 18 Power 5 | 1 . 4 Engine 5 | 1 . 4 Core . | . . . Reactor . | . . . Propulsion 6 | 2 . 4 Treads 6 | 2 . 4 Leg . | . . . Wheel . | . . . Hover . | . . . Flight . | . . . Utility 7 | 1 3 3 Device . | . . . Storage 3 | 1 2 . Processor . | . . . Hackware . | . . . Protection 4 | . 1 3 Artifact . | . . . Weapon 11 | 2 2 7 Energy Gun 1 | 1 . . Energy Cannon . | . . . Ballistic Gun 9 | 1 2 6 Ballistic Cannon . | . . . Launcher . | . . . Special Weapon . | . . . Impact Weapon . | . . . Slashing Weapon 1 | . . 1 Piercing Weapon . | . . . Special Melee Weapon . | . . . Unidentified Prototypes 1 | . 1 . Parts Lost 12 | . 1 11 Power 3 | . . 3 Propulsion 4 | . . 4 Utility 3 | . . 3 Weapon 2 | . 1 1 Highest Loss Streak 5 | . 1 5 To Critical Strikes . | . . . Average Backups 12 | 1 12 13 Power 1 | . 1 1 Propulsion 2 | . 1 2 Utility 3 | . 3 3 Weapon 6 | . 6 6 Tool/Special . | . . . Unused Backups 17 | . 5 12 Power 1 | . . 1 Propulsion 2 | . . 2 Utility 1 | . . 1 Weapon 13 | . 5 8 Tool/Special . | . . . Average Slot Usage (%) 97 | . 93 99 Engine 13 | . 14 13 Treads 27 | . 28 27 Storage 16 | . 21 14 Protection 9 | . . 14 Ballistic Gun 27 | . 27 27 Peak Build Rating 19 | 6 14 19 Average Rating 13 | 5 11 14 On Entrance 6 | . 6 14 Avg Prop Armor Cover (%) . | . . . Naked Turns . | . . . Heaviest Build 94 | 12 94 37 Greatest Support 40 | 40 40 40 Greatest Overweight (x) 2 | . 2 1 Average Overweight (x) . | . . . Largest Inventory Capacity 25 | 8 25 15 Average Capacity 16 | 7 19 15 Most Carried 19 | 2 19 15 Average Carried 13 | 1 12 14 Final Capacity 15 | 8 15 15 Final Carried 14 | 2 14 13 Class Distribution -------------------- 97% | Mutant Dominant Class ---------------- Mutant | -10/Materials Mutant | -10/Subcaves Resources | -11 -10 -10 ----------- Run | Yrd Mat Sub Matter Collected 1137 | 177 136 824 Remotely . | . . . Salvage Created 1077 | . 178 899 Parts 67 | . 12 55 Haulers Intercepted 2 | . 2 . Recyclers Shooed . | . . . Parts Field Recycled . | . . . Retrieved Matter . | . . . Parts Self-Destructed 19 | . . 19 Prevented . | . . . Parts Restored . | . . . Kills | -11 -10 -10 ------- Run | Yrd Mat Sub Combat Hostiles Destroyed 25 | . 3 22 Guns 25 | . 3 22 Classes Destroyed 7 | . 3 4 Hauler 2 | . 2 . Turret 2 | . . 2 Watcher 1 | . 1 . Swarmer 7 | . 3 4 Grunt 2 | . . 2 Sentry 1 | . . 1 Subdweller 15 | . . 15 Best Kill Streak 4 | . 3 4 Combat Bots Only 4 | . 3 4 Max Kills in Single Turn 2 | . 1 2 Gunslinging 1 | . . 1 Exploded . | . . . Melee . | . . . Uniques/NPCs Destroyed . | . . . Combat | -11 -10 -10 -------- Run | Yrd Mat Sub Hostile Shots Fired 190 | . 5 185 Missed 63 | . . 63 Hits 127 | . 5 122 Projectile 127 | . 5 122 Critical Strikes 3 | . . 3 Damage Taken 2089 | . 40 2049 Core 261 | . . 261 Absorbed by Shields . | . . . Core Remaining (%) 100 | 100 . . Volleys Fired 122 | . 11 111 Largest 2 | . 2 2 Hottest 58 | . 46 58 Shots Fired 231 | . 22 209 Gun 231 | . 22 209 Cannon . | . . . Launcher . | . . . Special . | . . . Kinetic 231 | . 22 209 Thermal . | . . . Explosive . | . . . Electromagnetic . | . . . Robot Hit Streak 13 | . 5 13 Robot Miss Streak 2 | . 2 2 Penetration Max . | . . . Secondary Targets 3 | . . 3 Max Gunslinging Chain 1 | . . 1 Shots Hit Robots 160 | . 13 147 Core Hits 50 | . 7 43 Critical Kills 1 | . 1 . Critical Parts Destroyed 2 | . . 2 Critical Strikes 4 | . 1 3 Destroy 4 | . 1 3 Melee Attacks 2 | . . 2 Impact . | . . . Slashing 2 | . . 2 Piercing . | . . . Sneak Attacks . | . . . Combat Hostiles . | . . . Follow-up Attacks . | . . . Damage Inflicted 2773 | . 193 2580 Guns 2703 | . 193 2510 Cannons . | . . . Explosions . | . . . Melee 70 | . . 70 Ramming . | . . . Kinetic 2703 | . 193 2510 Thermal . | . . . Explosive . | . . . Electromagnetic . | . . . Impact . | . . . Slashing 70 | . . 70 Piercing . | . . . Highest Corruption . | . . . Average Corruption . | . . . Corruption Purged . | . . . Corruption Blocked . | . . . Overload Shots . | . . . Overflow Damage . | . . . Projectiles . | . . . Explosions . | . . . Melee . | . . . Knockbacks . | . . . Impact . | . . . Kinetic . | . . . Secondary . | . . . Self-Inflicted Damage . | . . . Shots . | . . . Rammed . | . . . Targets Rammed . | . . . Kicked . | . . . Crushed . | . . . Highest Temperature 224 | . . 224 Average Temperature 110 | . . 110 Received Heat Transfer 835 | . . 835 Siege Activations . | . . . Martial Activations . | . . . Shielding Activations . | . . . Robots Disrupted . | . . . Combat Hostiles . | . . . Robots Corrupted . | . . . Combat Hostiles . | . . . Parts Fried . | . . . Impact Corruptions . | . . . Robots Melted . | . . . Combat Hostiles . | . . . Parts Melted 2 | . . 2 Heat Transferred . | . . . Parts Sabotaged . | . . . Parts Stolen . | . . . Parts Stripped . | . . . Power Chain Reactions . | . . . Alert | -11 -10 -10 ------- Run | Yrd Mat Sub Maximum Alert Level . | . . . Low Security (%) 100 | 100 100 . Level 1 . | . . . Level 2 . | . . . Level 3 . | . . . Level 4 . | . . . Level 5 . | . . . High Security . | . . . Max Security . | . . . Peak Influence 70 | . 70 . Initial . | . . . Average 6 | . 6 . Influence Increases 362 | . 97 265 Destroy 0b10 Robot/C 240 | . 60 180 Destroy 0b10 Robot/NC 15 | . 15 . Destroy Leader 26 | . 16 10 Successful Hack 5 | . 5 . Destroy Structure 1 | . 1 . Lose Combat Pursuer 75 | . . 75 Influence Decreases 346 | . 97 249 Time Decay 338 | . 97 241 Lost Part 8 | . . 8 Squads Dispatched . | . . . Investigation . | . . . Extermination . | . . . Reinforcement . | . . . Assault . | . . . Garrison . | . . . Intercept . | . . . Searches Triggered . | . . . Construction Impeded . | . . . Haulers Reinforced . | . . . Active Scanning Responses . | . . . Cargo Convoy Interrupts . | . . . Stealth | -11 -10 -10 --------- Run | Yrd Mat Sub Distress Signals . | . . . Communications Jammed . | . . . Distress Signals . | . . . Times Spotted 34 | . 5 29 Peak Tracking Total 4 | . 3 4 Tactical Retreats 3 | . . 3 Traps | -11 -10 -10 ------- Run | Yrd Mat Sub Traps Triggered 3 | . . 3 Indirectly . | . . . Trap Hack Attempts . | . . . Triggered . | . . . Disarmed . | . . . Reprogrammed . | . . . Reused . | . . . Traps Extracted . | . . . Installed . | . . . Triggered . | . . . Machines | -11 -10 -10 ---------- Run | Yrd Mat Sub Machines Disabled 2 | . . 2 Max in Single Turn 1 | . . 1 Machines Repaired . | . . . Machines Dismantled . | . . . Machines Sabotaged . | . . . Overloaded Fab Kills . | . . . Hacking | -11 -10 -10 --------- Run | Yrd Mat Sub Machines Accessed 4 | . 4 . Terminals 4 | . 4 . Fabricators . | . . . Repair Stations . | . . . Recycling Units . | . . . Scanalyzers . | . . . Garrison Access . | . . . Total Hacks 9 | . 9 . Successful 4 | . 4 . Failed 4 | . 4 . Catastrophic 2 | . 2 . Database Lockouts 1 | . 1 . Manual 9 | . 9 . Terminals 9 | . 9 . Fabricators . | . . . Repair Stations . | . . . Recycling Units . | . . . Scanalyzers . | . . . Garrison Access . | . . . Terminal Hacks 2 | . 2 . Part Schematic 1 | . 1 . Robot Analysis 1 | . 1 . Fabricator Hacks . | . . . Repair Station Hacks . | . . . Recycling Unit Hacks . | . . . Scanalyzer . | . . . Garrison Access Hacks . | . . . Unauthorized Hacks 2 | . 2 . Terminals 2 | . 2 . Botnet 2 | . 2 . Fabricators . | . . . Repair Stations . | . . . Recycling Units . | . . . Scanalyzers . | . . . Garrison Access . | . . . Data Cores Recovered . | . . . Used . | . . . Hacking Detections 4 | . 4 . Full Trace Events . | . . . Feedback Events . | . . . Feedback Blocked . | . . . Robot Schematics Acquired . | . . . Robots Built . | . . . Authchips . | . . . Time . | . . . Total Robot Build Rating . | . . . Part Schematics Acquired 1 | . 1 . Parts Built . | . . . Authchips . | . . . Time . | . . . Total Part Build Rating . | . . . Part Studies Acquired . | . . . Parts Repaired . | . . . Time . | . . . Parts Recycled . | . . . Recycled Matter . | . . . Retrieved Matter . | . . . Retrieved Components . | . . . Parts Scanalyzed . | . . . Part Schematics Acquired . | . . . Parts Damaged . | . . . Bothacking | -11 -10 -10 ------------ Run | Yrd Mat Sub Used RIF Installer . | . . . Robots Hacked . | . . . Non-combat . | . . . Combat . | . . . Robot Hacks Applied . | . . . Relay Couplers Released . | . . . Fabnet Peak Effective % . | . . . Robots Rewired . | . . . Allies Hacked . | . . . Hacks Repelled . | . . . Allies | -11 -10 -10 -------- Run | Yrd Mat Sub Total Allies . | . . . Largest Group . | . . . Highest-Rated Group . | . . . Highest-Rated Ally . | . . . Total Orders . | . . . Ally Attacks . | . . . Total Damage . | . . . Kills . | . . . Allies Corrupted . | . . . Allies Melted . | . . . Intel | -11 -10 -10 ------- Run | Yrd Mat Sub Active Infowar (turns) . | . . . Robot Analysis Total 1 | . 1 . Derelict Logs Recovered 2 | . . 2 Drone Launches . | . . . Drone Recoveries . | . . . Exploration | -11 -10 -10 ------------- Run | Yrd Mat Sub Turns Passed 3752 | 99 1157 2496 Spaces Moved 1550 | 57 398 1095 Core 2 | 2 . . Treads 1548 | 55 398 1095 Legs . | . . . Wheels . | . . . Hover . | . . . Flight . | . . . Fastest Speed 50 | 50 160 160 Average Speed 179 | 156 235 160 Slowest Speed 320 | 160 320 240 Overloaded Moves . | . . . Propulsion Burnouts . | . . . Robots Hopped . | . . . Potential Cave-ins . | . . . Cave-ins Triggered . | . . . Exploration Rate (%) 47 | 4 63 74 Regions Visited 2 Branch Regions 1 Pre-discovered Areas . | . . . Known Exits Taken . | . . . Unknown Exits Taken 2 | 1 1 . Scrap Searched 7 | . . 7 Spaces Dug . | . . . Terrain Destroyed . | . . . Melee . | . . . Projectile . | . . . AOE . | . . . Terrain Rammed . | . . . Walls Destroyed . | . . . Machines Disabled . | . . . Actions | -11 -10 -10 --------- Run | Yrd Mat Sub Total 2288 | 64 595 1629 Wait 534 | . 155 379 Move 1548 | 56 397 1095 Hop . | . . . Pick Up 32 | 2 18 12 Fast Attach 12 | 6 3 3 Attach 13 | . 1 12 Detach . | . . . Swap 6 | . 2 4 Drop 19 | . 8 11 Fire 122 | . 11 111 Melee 2 | . . 2 Ram . | . . . Kick . | . . . Crush . | . . . Escape Stasis . | . . . Rewire . | . . . Trap . | . . . Miscellaneous . | . . . Route ------- -11/Scrapyard -10/Materials (discovered 4 exits: [*Mat x3] / [*Sub]) -10/Subcaves (discovered 4 exits: [*Mat x2] / [*Rec] / [*Scr]) History --------- Turn | Location | Event 23 | -11/Scrapyard | Discovered new exit (range 15) 100 | -11/Scrapyard | Entered Materials 309 | -10/Materials | Build established: Mutant 449 | -10/Materials | Discovered new exit (range 9) 583 | -10/Materials | Discovered new exit (range 15) 802 | -10/Materials | Central database locked down 1080 | -10/Materials | Discovered new exit (range 4) 1232 | -10/Materials | Discovered new exit (range 8) 1257 | -10/Materials | Entered Subcaves 1258 | -10/Subcaves | Shifting Twisted Machinery released Hvy. Battle Rifle 1258 | -10/Subcaves | Approached by a straggling Scientist 1292 | -10/Subcaves | Shifting Twisted Machinery released Shrapnel Trap 1310 | -10/Subcaves | Discovered new exit (range 14) 1452 | -10/Subcaves | Scientist uncovered a shortcut to Scraptown 1746 | -10/Subcaves | Learned Materials garrison access intel 2388 | -10/Subcaves | Shifting Twisted Machinery released Spk. Treads 2440 | -10/Subcaves | Discovered new exit (range 10) 2491 | -10/Subcaves | Core integrity fell below 50% 2594 | -10/Subcaves | Shifting Twisted Machinery released Battle Rifle 2936 | -10/Subcaves | Discovered new exit (range 13) 3097 | -10/Subcaves | A Subdweller sparked back to life 3097 | -10/Subcaves | A Subdweller sparked back to life 3179 | -10/Subcaves | Found Prototype Flight Unit 3182 | -10/Subcaves | Lost 5 parts (2p1n1u1w) 3533 | -10/Subcaves | Core integrity fell below 20% 3673 | -10/Subcaves | A swath of the cavern ceiling suddenly collapsed 3753 | -10/Subcaves | Destroyed by 48-AC0(R) with Subdweller Machine Gun Last Messages --------------- 03255_ Beam Rifle fries itself beyond repair. 03257_ Lgt. Armor Plating fries itself beyond repair. 03258_ Acquired 34 matter. 03264_ Aluminum Leg fries itself beyond repair. 03420_ Sub. Power Source shoots sparks and powers down. 03539_ F2-VBV(R) destroyed. 03550_ 4P-XAH(R) affixes Scrap Shield Fragment to Scrap Shield. 03557_ Hrd. Light Armor Plating destroyed. 03558_ 4P-XAH(R) destroyed. 03564_ Acquired 42 matter. 03565_ M1-4UP(R): "OHNO!" 03572_ M1-4UP(R) destroyed. 03576_ Acquired Sub. Beam Cannon. 03582_ Acquired 26 matter. 03593_ Lgt. Treads destroyed. 03600_ G-47 Trooper suffers critical hit (Destroy). 03600_ Destroyed Aluminum Leg. 03603_ G-47 Trooper destroyed. 03610_ Acquired 37 matter. A swath of the cavern ceiling suddenly collapses. Map ----- +----------------------------------------------------+ | ???#" ## ## #### "#???????????????????????? | | ??? &??## ?# ##??# "#???????????????????????? | | ?? ???# ?###???#" """#???????????????????????? | | ???????# ???????########???????????????????????? | | ???????## ??????????????????????????????????????? | | ???????? ??????????????????????????????????????? | | ???????? ??????????????????????????????????????? | | ??????? ??????????????????????????????????????? | | ????????? ???????????????????????????????????????? | | ????????? ???????????????????????????????????????? | | ?????????????????????????????????????????????????? | | ???????????????????????????????## ???????????????? | | ???????????????????????###????# ????????????????? | | ??????????????????????? ##?## ?????????????????? | | ??????????????????????? ## ??????????????????? | | ??????????????????????? ???????????????????? | | ???????????????????????# ????????????????????? | | ??????????????????????## #????????????????????? | | ?????????????????????## #????????????????????? | | ?????????????????????# #????????????????????? | | ?????????????????????# #?????????????????????? | | ?????????????????????# #??????????????????????? | | ?????????????# ??????# #????##?????????????????? | | ?????????????# ##??# #??## ##????????????????? | | ??????????????# ## RR### ## ??????????? | | ?????????????# @ #???????????? | | ???????????????# ## ## ## #????????????? | | ??????????????????#??## ##??????????????????? | | ??????????????"??????##! ##???????????????????? | | ????????????? ""######&%* ##???????????????????? | | ?????????????# "" #???????????????????? | | ???????????????## #???????????????????? | | ????????????????# ######???????????????????? | | ????????????????# #????????????????????????? | | ????????????????## #?????? ????????????????? | | ?????????????????### #???## ?????????????????? | | ???????????????????## ####" #??????????????????? | | ????????????????????## """"" ????????????????? | | ?????????? #????????## """"?????????????????? | | ????????? ????????# # ###?????????????????? | | ????????? ?????????# # #???###?????????????? | | ???????## ##########" ###"##?### #?????????????? | | ??????## ?# "" & %[#?######" ##????????????? | | ?????#### ?# "" &! ### #" "" ##???????????? | | ????#""##?## """ "" " ###?????????? | | #????#""##?##### "" "" ##????????? | | #####"""##????# ## # # " " ##???????? | | ## " #???## ##" "" " ####????? | | #???# ###" """" #????? | | ##### #### ## """"" ##????? | +----------------------------------------------------+ Best States ------------- Heat Dissipation 25 Energy Generation 15 Energy Capacity 250 Matter Stores 300 Matter Capacity 300 Sight Range 16 Terrain Scan Density 10 Armor Coverage 150 Evasion (%) 40 Recoil Reduction 2 Item Schematics ----------------- Hcp. Storage Unit | -10/Materials | Hacked Robot Schematics ------------------ None Fabricated ------------ Nothing Repaired ---------- Nothing Studied --------- None Alien Tech Used ----------------- None Achievements -------------- None Challenges ------------ None Game ------ Seed LauncherGammaOptics Manual? 0 Play Time 00:17:47 Cumulative 322.5 hours Start 2025.11.23 @ 09:19:03 End 2025.11.23 @ 10:06:18 Sessions 1 Manual Loads 0 Difficulty Rogue Special Mode None Game No. 338 Rogue 334 Adventurer 3 Explorer 1 Win Type - Total 2 Types 2/0/0/0/0/0/0/0/0/0 Lore% 82 Gallery% 78 Achievement% 63 Wizard Run 0 Options --------- Layout 0 ASCII 0 Keyboard 0 Movement Mouse Keybinds 0 Fullscreen 2 Font 18/SmallcapsGlow Map View 76x50 Zoom Use 0% Tactical HUD 1 Map Filters NONE Filters NONE Steam 1 RUN: 54fdd7f6-d5b6-48c9-90c1-c69cd3c71752